bitfinex/quotes_ETHUSD_20250725
["timestamp","ask_amount","ask_price","bid_price","bid_amount"]
[1753421612564,7.63764153,3630.5,3630.4,1e-08]
[1753421612765,12.05864153,3630.5,3630.4,1e-08]
[1753421613056,7.63764153,3630.5,3630.4,1e-08]
[1753421613227,4.20244153,3630.5,3630.4,1e-08]
[1753421613424,11.62344153,3630.5,3630.4,1e-08]
[1753421613632,6.01716844,3630.5,3630.4,1e-08]
[1753421613955,10.43716844,3630.5,3630.4,1e-08]
[1753421615252,11.35006844,3630.5,3630.4,1e-08]
[1753421616474,12.17386844,3630.5,3630.4,1e-08]
[1753421617271,28.87686844,3630.5,3630.4,1e-08]
[1753421618778,29.13365337,3630.5,3630.4,1e-08]
[1753421619072,27.48065337,3630.5,3630.4,1e-08]
[1753421619377,34.67065335,3630.5,3630.4,1e-08]
[1753421619869,26.70065335,3630.5,3630.4,1e-08]
[1753421620169,29.12416842,3630.5,3630.4,1e-08]
[1753421620378,32.85870933,3630.5,3630.4,1e-08]
[1753421620777,33.29390933,3630.5,3630.4,1e-08]
[1753421620954,18.79390933,3630.5,3630.4,1e-08]
[1753421621358,19.56480933,3630.5,3630.4,1e-08]
[1753421621565,19.71889629,3630.5,3630.4,1e-08]
[1753421621867,19.56480933,3630.5,3630.4,1e-08]
[1753421622250,34.61480933,3630.5,3630.4,1e-08]
[1753421622455,34.76886021,3630.5,3630.4,1e-08]
[1753421622969,34.61480933,3630.5,3630.4,1e-08]
[1753421623179,36.26780933,3630.5,3630.4,1e-08]
[1753421624870,8.73956916,3630.2,3630.1,1e-08]
[1753421625073,7.95789682,3629.9,3629.8,1e-08]
[1753421625365,20.4823968,3629.9,3629.8,1e-08]
[1753421625569,36.48684225,3629.9,3629.8,1e-08]
[1753421627950,36.6908835,3629.9,3629.8,1e-08]
[1753421628180,36.94745972,3629.9,3629.8,1e-08]
[1753421628388,7.06432819,3629.2,3629.1,0.04]
[1753421628588,7.06432819,3629.2,3628.1,0.04]
[1753421628589,2.75618764,3628.2,3628.1,0.04]
[1753421628789,10.93568764,3628.2,3628.1,0.04]
[1753421629099,20.25618764,3628.2,3628.1,0.04]
[1753421629576,7.413,3628.2,3628.1,0.51]
[1753421629983,10.16918764,3628.2,3628.1,0.51]
[1753421630288,7.413,3628.2,3628.1,0.04]
[1753421630454,10.16918764,3628.2,3628.1,0.04]
[1753421631485,7.413,3628.2,3628.1,0.04]
[1753421631671,10.16918764,3628.2,3628.1,0.04]
[1753421632009,7.413,3628.2,3628.1,0.04]
[1753421632188,11.07708764,3628.2,3628.1,0.04]
[1753421632361,12.41648764,3628.2,3628.1,0.04]
[1753421633000,2.7567955,3627.4,3627.3,0.47]
[1753421633199,5.7568715,3627.3,3627.2,1.0485]
[1753421633498,5.7568715,3627.3,3627.2,0.2495]
[1753421633996,6.6647715,3627.3,3627.2,0.2495]
[1753421634577,6.2300715,3627.3,3627.2,0.2495]
[1753421635110,21.1647715,3627.3,3627.2,0.2495]
[1753421635509,21.7147715,3627.3,3627.2,0.2495]
[1753421635810,20.46706447,3627.3,3627.2,0.2495]
[1753421636101,20.94026447,3627.3,3627.2,0.2495]
[1753421637300,24.87806447,3627.3,3627.2,0.2495]
[1753421637488,4.41,3627.3,3627.2,0.7195]
[1753421637806,4.41,3627.3,3627.2,1.0481]
[1753421637985,0.12109507,3627.4,3627.2,1.0481]
[1753421637986,0.206076,3628.3,3627.2,1.20525]
[1753421638167,2.7563127,3628.1,3627.4,2.75678842]
[1753421638362,4.41,3628.0,3627.6,2.75662571]
[1753421638575,4.41,3628.0,3627.7,0.7986]
[1753421638777,4.41,3628.0,3627.9,0.1376]
[1753421639101,4.41,3628.0,3627.9,1.7029]
[1753421639464,7.41,3628.0,3627.9,1.7029]
[1753421640763,10.16633958,3628.0,3627.9,0.1376]
[1753421640999,5.75642624,3627.9,3627.4,0.7886]
[1753421641163,5.75642624,3627.9,3627.2,0.2495]
[1753421641164,3.0,3627.5,3627.2,0.2495]
[1753421641364,4.409,3627.4,3627.2,0.3871]
[1753421641866,4.409,3627.4,3627.3,0.7986]
[1753421642062,4.409,3627.4,3627.3,3.7569015]
[1753421642265,4.409,3627.5,3627.3,3.7569015]
[1753421642499,4.409,3627.5,3627.4,0.7986]
[1753421642692,4.409,3627.5,3627.4,0.1376]
[1753421642890,4.409,3627.5,3627.2,0.2495]
[1753421643096,5.7568715,3627.3,3627.2,0.2495]
[1753421643297,10.1648715,3627.3,3627.2,0.2495]
[1753421644770,11.0727715,3627.3,3627.2,0.2495]
[1753421645068,10.3014715,3627.3,3627.2,0.2495]
[1753421646104,7.407,3627.3,3627.2,0.8571]
[1753421646478,7.407,3627.3,3627.2,0.3871]
[1753421646781,11.0717715,3627.3,3627.2,0.2495]
[1753421646981,11.2093715,3627.3,3627.2,0.2495]
[1753421649108,11.33688749,3627.3,3627.2,0.2495]
[1753421649294,18.52688746,3627.3,3627.2,0.2495]
[1753421649684,13.21198746,3627.3,3627.2,0.2495]
[1753421649884,18.09018746,3627.3,3627.2,0.2495]
[1753421650611,18.52488746,3627.3,3627.2,0.2495]
[1753421655517,19.07488746,3627.3,3627.2,0.2495]
[1753421656117,5.7569475,3627.2,3627.1,0.041]
[1753421656303,6.6648475,3627.2,3627.1,0.041]
[1753421658984,13.85484747,3627.2,3627.1,0.041]
[1753421660392,14.11143913,3627.2,3627.1,0.041]
[1753421661827,14.91083913,3627.2,3627.1,0.041]
[1753421662134,5.75770779,3626.2,3626.1,0.04]
[1753421662432,10.15770779,3626.2,3626.1,0.04]
[1753421663315,4.4,3626.2,3626.1,0.8314]
[1753421663631,2.75759503,3626.4,3626.2,0.827]
[1753421663797,7.4,3626.3,3626.2,0.827]
[1753421664231,7.4,3626.3,3626.2,0.9646]
[1753421664529,7.4,3626.3,3626.2,1.756]
[1753421664732,7.4,3626.3,3626.2,2.21138537]
[1753421665307,7.4,3626.3,3626.2,4.96909316]
[1753421665530,7.4,3626.3,3626.2,2.21138537]
[1753421666105,7.4,3626.3,3626.2,4.96909316]
[1753421666308,7.4,3626.3,3626.2,2.21138537]
[1753421666511,7.4,3626.3,3626.2,4.96909316]
[1753421667132,7.4,3626.3,3626.2,2.21138537]
[1753421667500,7.4,3626.3,3626.2,1.756]
[1753421668221,7.4,3626.3,3626.2,4.51370779]
[1753421668538,7.4,3626.3,3626.2,1.4274]
[1753421668740,7.4,3626.3,3626.2,1.756]
[1753421668933,0.1376,3626.9,3626.3,0.7852]
[1753421669103,4.397,3626.8,3626.5,2.75747966]
[1753421669304,3.0,3626.7,3626.6,0.7852]
[1753421669504,3.0,3626.7,3626.6,1.5766]
[1753421669704,3.0,3626.7,3626.6,1.7142]
[1753421669905,3.0,3626.7,3626.6,4.47160362]
[1753421670406,3.0,3626.7,3626.6,1.7142]
[1753421671119,3.0,3626.7,3626.6,4.47160362]
[1753421671341,3.0,3626.7,3626.6,5.25785893]
[1753421671538,2.75663695,3627.7,3626.7,2.75732759]
[1753421671839,3.0,3627.5,3627.1,0.8077]
[1753421672139,3.0,3627.3,3627.2,0.7914]
[1753421672305,4.396,3627.3,3627.2,0.3286]
[1753421672501,4.396,3627.3,3627.2,0.4662]
[1753421672907,4.396,3627.3,3627.2,0.929]
[1753421673121,0.124998,3628.0,3627.2,1.65408913]
[1753421673337,2.75649153,3627.8,3627.3,0.4628]
[1753421673538,4.395,3627.7,3627.3,0.4628]
[1753421673741,7.395,3627.6,3627.4,0.7914]
[1753421673912,3.0,3627.9,3627.5,0.929]
[1753421674113,7.395,3627.8,3627.7,0.1376]
[1753421674314,7.65174732,3627.8,3627.7,0.1376]
[1753421674542,7.65174732,3627.8,3627.7,1.7038]
[1753421674745,7.31640082,3628.2,3627.7,1.7038]
[1753421675043,4.65079787,3628.1,3627.9,2.75641141]
[1753421675217,4.394,3628.1,3627.9,2.75641141]
[1753421675415,7.394,3628.1,3628.0,3.68533958]
[1753421675627,7.394,3628.1,3628.0,0.929]
[1753421676142,7.394,3628.1,3628.0,3.68533958]
[1753421676747,7.394,3628.1,3628.0,4.50663958]
[1753421677042,7.394,3628.1,3628.0,1.7503]
[1753421678029,7.394,3628.1,3628.0,4.50663958]
[1753421678808,0.002,3628.3,3628.2,3.53668764]
[1753421679014,0.002,3628.3,3628.2,3.70184951]
[1753421679251,0.002,3628.3,3628.2,4.49324951]
[1753421679443,0.002,3628.3,3628.2,4.46568764]
[1753421679713,0.002,3628.3,3628.2,1.71463783]
[1753421679942,4.393,3628.3,3628.2,0.9181]
[1753421680144,3.0,3628.2,3627.4,0.7805]
[1753421680344,5.75633958,3628.0,3627.9,0.1376]
[1753421680548,3.0,3627.6,3627.4,0.7805]
[1753421680716,2.75659376,3627.7,3627.4,0.7805]
[1753421680717,7.391,3627.5,3627.4,0.7805]
[1753421680910,7.391,3627.5,3627.4,1.3809]
[1753421681117,4.391,3627.5,3627.4,4.4662955]
[1753421681673,4.392,3628.3,3627.7,0.7805]
[1753421681829,4.392,3628.3,3628.0,2.7562785]
[1753421682010,7.392,3628.3,3628.2,0.1376]
[1753421682211,7.392,3628.3,3628.2,0.6004]
[1753421682610,10.61851167,3628.3,3627.7,0.7805]
[1753421682842,3.0,3628.1,3627.7,0.7805]
[1753421683053,3.0,3627.9,3627.7,0.7805]
[1753421683422,3.0,3627.9,3627.8,0.1376]
[1753421683774,3.0,3627.9,3627.1,0.001]
[1753421683936,7.389,3627.8,3627.7,0.1376]
[1753421684475,7.389,3627.8,3627.7,4.48786752]
[1753421684755,7.389,3627.8,3627.7,1.7313]
[1753421685122,7.389,3627.8,3627.7,1.4027]
[1753421685371,7.389,3627.8,3627.7,0.9399]
[1753421685853,7.389,3627.8,3627.7,0.1376]
[1753421686359,11.45985292,3627.8,3627.7,0.1376]
[1753421686557,2.7569475,3627.2,3627.1,0.001]
[1753421686786,10.9428475,3627.2,3627.1,0.001]
[1753421686923,0.7507,3626.9,3625.1,1.6305]
[1753421687123,5.75770779,3626.2,3625.1,4.05937836]
[1753421687331,11.10860779,3626.2,3625.1,4.05937836]
[1753421687649,11.10860779,3626.2,3625.2,2.75846176]
[1753421688234,11.10860779,3626.2,3625.1,4.05943203]
[1753421688435,3.0,3626.2,3625.8,0.8328]
[1753421688632,7.387,3626.2,3625.8,0.8328]
[1753421689039,7.387,3626.2,3626.1,0.821]
[1753421689234,4.387,3626.2,3626.1,1.26491922]
[1753421689436,4.387,3626.2,3626.1,0.821]
[1753421689636,4.387,3626.2,3626.1,3.57878384]
[1753421689881,3.0,3626.4,3626.1,0.821]
[1753421690755,3.0,3626.4,3626.1,3.57878302]
[1753421691069,3.0,3626.4,3626.1,0.821]
[1753421691890,3.0,3626.4,3626.1,3.57876994]
[1753421692273,3.0,3626.4,3626.1,3.12736994]
[1753421692478,3.0,3626.4,3626.2,0.4514]
[1753421693792,4.8764,3626.3,3626.1,0.04]
[1753421693963,4.387,3626.3,3626.1,2.79777082]
[1753421694153,2.88421057,3626.8,3626.2,0.4514]
[1753421694154,0.12690061,3626.8,3626.2,0.4514]
[1753421694486,4.386,3626.7,3626.4,2.75752531]
[1753421694693,4.386,3626.7,3626.4,3.20892531]
[1753421695047,4.386,3626.7,3626.3,2.75762471]
[1753421695251,0.4894,3626.6,3626.1,0.04]
[1753421695483,3.0,3626.4,3626.1,0.04]
[1753421695682,3.0,3626.2,3626.1,0.04]
[1753421696285,3.4894,3626.2,3626.1,0.04]
[1753421696484,3.4894,3626.2,3626.1,0.1776]
[1753421696684,3.9629,3626.2,3626.1,0.1776]
[1753421697078,6.72060779,3626.2,3626.1,0.1776]
[1753421697594,6.72060779,3626.2,3626.1,0.0776]
[1753421698165,3.9629,3626.2,3626.1,0.0776]
[1753421698490,6.72060779,3626.2,3626.1,0.0776]
[1753421699702,0.8108,3626.5,3626.1,0.0776]
[1753421699881,7.385,3626.4,3626.0,2.75784057]
[1753421700199,3.0,3626.3,3626.1,2.75778184]
[1753421700606,3.0,3626.3,3626.2,0.1376]
[1753421700969,3.0,3626.3,3626.2,4.44150779]
[1753421701270,3.0,3626.3,3626.2,5.1641967]
[1753421701466,3.4894,3626.3,3626.2,0.1376]
[1753421701686,4.7713,3626.3,3626.2,0.1376]
[1753421702284,7.52893174,3626.3,3626.2,0.1376]
[1753421703776,3.0,3625.8,3625.5,0.001]
[1753421703977,3.0,3625.6,3625.5,0.001]
[1753421704190,3.0,3625.6,3625.5,0.1386]
[1753421704402,6.72106416,3625.6,3625.5,0.1386]
[1753421704609,3.9629,3625.6,3625.5,0.1386]
[1753421706298,4.383,3625.6,3625.5,0.1386]
[1753421706713,0.8231,3626.2,3625.5,0.1386]
[1753421706917,4.382,3626.1,3625.8,2.75800727]
[1753421707121,3.0,3626.0,3625.8,2.75798249]
[1753421707415,3.0,3625.8,3625.7,2.75808809]
[1753421707634,0.1267872,3626.3,3625.7,0.4514]
[1753421707791,4.383,3626.2,3625.7,0.781]
[1753421707984,3.0,3626.1,3626.0,2.7578599]
[1753421708390,3.0,3626.1,3626.0,2.8954599]
[1753421709086,0.002,3627.2,3626.7,2.75727805]
[1753421709327,0.002,3627.2,3627.1,0.1376]
[1753421709516,7.8734,3627.2,3627.1,0.1376]
[1753421709727,7.8734,3627.2,3626.1,0.7544]
[1753421709728,2.75715557,3627.0,3626.1,0.7544]
[1753421709889,7.8714,3626.9,3626.1,0.7544]
[1753421710225,3.0,3626.7,3626.4,2.75748601]
[1753421710425,3.0,3626.5,3626.4,2.75748601]
[1753421710582,3.0,3626.5,3626.3,2.75760927]
[1753421710923,3.0,3626.5,3626.4,0.1376]
[1753421711683,3.4894,3626.5,3626.4,0.1376]
[1753421712200,3.9629,3626.5,3626.4,0.1376]
[1753421712513,3.9629,3626.5,3625.5,0.001]
[1753421712691,11.1014557,3626.4,3626.3,0.1376]
[1753421713785,7.381,3626.4,3626.3,0.1376]
[1753421714326,7.8704,3626.4,3626.3,0.1376]
[1753421714698,7.381,3626.4,3626.3,0.1376]
[1753421714888,7.8704,3626.4,3626.3,0.1376]
[1753421715222,8.3439,3626.4,3626.3,0.1376]
[1753421715819,7.381,3626.4,3626.3,0.1376]
[1753421716331,7.8704,3626.4,3626.3,0.1376]
[1753421716520,8.3439,3626.4,3626.3,0.1376]
[1753421719343,7.8704,3626.4,3626.3,0.1376]
[1753421720221,3.0,3626.4,3626.3,2.89523174]
[1753421720533,0.002,3627.2,3626.6,2.75734884]
[1753421720746,3.0,3627.0,3626.5,2.75746288]
[1753421720943,3.0,3626.8,3626.5,2.75746288]
[1753421721151,3.0,3626.6,3626.5,2.75746288]
[1753421721523,3.0,3626.6,3626.5,0.1376]
[1753421721722,7.46720362,3626.6,3626.5,0.1376]
[1753421722950,7.46720362,3626.6,3625.5,2.7592116]
[1753421722951,4.7098,3626.6,3625.5,0.001]
[1753421723252,2.75814002,3625.7,3625.5,0.001]
[1753421723412,4.377,3625.6,3625.5,0.001]
[1753421723746,8.2874,3625.6,3625.5,0.001]
[1753421723949,8.2874,3625.6,3625.5,0.1386]
[1753421724310,7.8582,3625.6,3625.5,0.1386]
[1753421725358,3.0,3625.6,3625.5,2.89684024]
[1753421725557,7.377,3625.6,3625.5,2.89684024]
[1753421726462,7.377,3625.6,3625.5,0.1386]
[1753421726764,8.2874,3625.6,3625.5,0.1386]
[1753421727328,11.04556416,3625.6,3625.5,0.1386]
[1753421727662,11.79996416,3625.6,3625.5,0.1386]
[1753421730971,9.0418,3625.6,3625.5,0.1386]
[1753421731129,11.79996416,3625.6,3625.5,0.1386]
[1753421731766,8.6126,3625.6,3625.5,0.1386]
[1753421732249,11.79996416,3625.6,3625.5,0.1386]
[1753421736184,3.0,3625.6,3625.5,0.1386]
[1753421736353,10.61336416,3625.6,3625.5,0.1386]
[1753421736558,11.04256416,3625.6,3625.5,0.1386]
[1753421737279,11.17225264,3625.6,3625.5,0.1386]
[1753421740592,11.17225264,3625.6,3625.5,0.001]
[1753421740959,6.36905264,3625.6,3625.5,0.001]
[1753421741280,10.74205264,3625.6,3625.5,0.001]
[1753421741589,11.17125264,3625.6,3625.5,0.001]
[1753421742402,10.74205264,3625.6,3625.5,0.001]
[1753421742562,11.17125264,3625.6,3625.5,0.001]
[1753421743271,3.0,3625.6,3625.5,0.001]
[1753421743477,2.75773454,3626.2,3625.5,3.54314024]
[1753421743676,4.372,3626.1,3625.5,3.54314024]
[1753421743906,4.372,3626.1,3625.5,3.98817426]
[1753421744105,3.0,3626.0,3625.6,2.75813781]
[1753421744468,2.75772012,3626.2,3625.7,0.7839]
[1753421744469,4.372,3625.9,3625.7,0.7839]
[1753421744663,4.372,3625.8,3625.7,3.08768809]
[1753421744864,4.372,3625.8,3625.7,3.79384192]
[1753421745062,3.0,3626.2,3625.7,0.1376]
[1753421745300,7.19199997,3626.3,3625.8,3.54184319]
[1753421745301,3.0,3626.0,3625.8,3.54184319]
[1753421745509,7.371,3625.9,3625.8,3.08754319]
[1753421745682,7.371,3625.9,3625.8,3.22514319]
[1753421746079,7.371,3625.9,3625.8,3.67944319]
[1753421746280,3.0,3625.9,3625.8,5.10987674]
[1753421746480,4.371,3626.2,3626.1,2.75778384]
[1753421746677,4.371,3626.2,3626.1,3.21208384]
[1753421746865,3.0,3626.2,3626.1,3.34968384]
[1753421747277,3.0,3626.2,3626.1,4.13644918]
[1753421747577,4.373,3626.3,3626.2,2.75770779]
[1753421747778,4.373,3626.3,3626.2,3.53640779]
[1753421747979,7.373,3626.3,3626.2,3.53640779]
[1753421748176,0.002,3626.3,3626.2,3.53640779]
[1753421748375,0.002,3626.3,3626.2,4.25827103]
[1753421748713,0.002,3626.3,3626.2,5.08727103]
[1753421749528,0.002,3626.3,3626.2,4.30857103]
[1753421749726,0.002,3626.3,3626.2,3.58670779]
[1753421750227,0.002,3626.3,3626.2,4.03580779]
[1753421750437,0.002,3626.3,3626.2,3.58670779]
[1753421751382,0.002,3626.3,3626.2,4.03580779]
[1753421752128,0.002,3626.3,3626.2,4.36540779]
[1753421752325,0.002,3626.3,3626.2,2.34644188]
[1753421752481,0.002,3626.3,3626.2,0.829]
[1753421752687,0.002,3626.3,3626.2,3.58670779]
[1753421752913,0.002,3626.3,3626.2,0.829]
[1753421753485,4.252,3626.3,3626.1,0.1376]
[1753421753823,6.72800779,3626.2,3626.1,0.1376]
[1753421754535,3.9703,3626.2,3626.1,0.1376]
[1753421755034,3.9703,3626.2,3625.5,0.001]
[1753421755035,5.75780174,3626.1,3625.5,0.001]
[1753421755201,10.1258599,3626.0,3625.9,0.1376]
[1753421755402,8.3383,3626.0,3625.9,0.1376]
[1753421755912,11.0961599,3626.0,3625.9,0.1376]
[1753421756532,8.3383,3626.0,3625.9,0.1376]
[1753421756702,11.0961599,3626.0,3625.9,0.1376]
[1753421757046,3.0,3626.0,3625.9,0.1376]
[1753421757221,7.368,3626.0,3625.9,0.1376]
[1753421757421,7.8657,3626.0,3625.9,0.1376]
[1753421758923,8.3383,3626.0,3625.9,0.1376]
[1753421759734,8.46652678,3626.0,3625.9,0.1376]
[1753421760241,11.22438668,3626.0,3625.9,0.1376]
[1753421760444,8.46652678,3626.0,3625.9,0.1376]
[1753421760957,3.12822678,3626.0,3625.9,0.1376]
[1753421761245,4.366,3626.0,3625.9,0.9163]
[1753421761445,4.366,3626.0,3625.9,4.04166064]
[1753421761645,4.366,3626.0,3625.9,4.81546064]
[1753421761830,3.0,3626.1,3626.0,2.75779111]
[1753421762046,4.366,3626.2,3626.0,3.53649111]
[1753421762250,3.0,3626.1,3626.0,0.7787]
[1753421762451,3.0,3626.1,3626.0,0.4491]
[1753421762652,3.0,3626.1,3626.0,0.5867]
[1753421763041,3.0,3626.1,3626.0,3.3445599]
[1753421763628,0.13156448,3626.3,3626.0,3.3445599]
[1753421763827,0.002,3626.3,3626.2,2.75770779]
[1753421764028,4.368,3626.3,3626.2,0.1376]
[1753421764273,7.368,3626.3,3626.2,2.89530779]
[1753421764431,3.002,3626.3,3626.2,2.89530779]
[1753421764829,3.002,3626.3,3626.2,3.34440779]
[1753421765164,3.002,3626.3,3626.2,2.89530779]
[1753421765865,3.002,3626.3,3626.2,3.34440779]
[1753421766464,3.002,3626.3,3626.2,4.49982728]
[1753421766764,3.002,3626.3,3626.2,5.27852728]
[1753421766963,0.002,3626.3,3626.2,5.30610435]
[1753421767162,0.002,3626.3,3626.2,9.67110435]
[1753421767358,0.002,3626.3,3626.2,9.64352728]
[1753421768441,0.002,3626.3,3626.2,5.27852728]
[1753421768654,0.002,3626.3,3626.2,9.64252728]
[1753421768829,0.002,3626.3,3626.2,10.19252728]
[1753421769637,1e-08,3626.3,3626.2,10.19252728]
[1753421770041,0.002,3626.9,3626.8,4.09655157]
[1753421770349,0.002,3626.9,3626.8,10.24695287]
[1753421770663,0.002,3626.9,3626.8,11.02565287]
[1753421771765,0.002,3626.9,3626.8,10.69605287]
[1753421771956,0.002,3626.9,3626.8,11.02565287]
[1753421772578,0.002,3627.8,3627.4,0.8089]
[1753421772792,0.002,3627.8,3627.6,2.75664351]
[1753421772990,0.002,3627.8,3627.6,4.01777741]
[1753421773286,0.002,3627.8,3627.6,4.82404384]
[1753421774263,0.002,3627.8,3627.6,6.20534384]
[1753421774495,0.002,3627.8,3627.6,6.17777741]
[1753421774987,0.002,3627.8,3627.6,5.29817741]
[1753421776018,0.002,3627.8,3627.6,5.62777741]
[1753421777600,0.002,3627.8,3627.6,6.17777741]
[1753421777751,1e-08,3627.7,3627.6,6.17777741]
[1753421777950,1e-08,3628.0,3627.9,3.30641555]
[1753421778304,1e-08,3628.0,3627.9,9.51541725]
[1753421778584,1e-08,3628.0,3627.9,10.29131725]
[1753421780012,0.8397,3629.9,3628.7,0.55]
[1753421780214,0.8397,3629.9,3628.8,8.43793192]
[1753421780423,0.8397,3629.9,3628.8,4.07893192]
[1753421780707,0.4564,3629.3,3628.8,7.93580742]
[1753421780867,0.9478,3628.9,3628.8,0.1376]
[1753421781392,0.4964,3628.9,3628.8,0.1376]
[1753421781608,0.04,3628.9,3628.8,2.89333192]
[1753421781914,0.4964,3628.9,3628.8,0.1376]
[1753421782892,0.04,3628.9,3628.8,2.89333192]
[1753421783096,0.04,3628.9,3628.8,3.89680875]
[1753421783468,0.4964,3628.9,3628.8,0.1376]
[1753421783681,0.4964,3628.9,3628.8,2.89333192]
[1753421783881,0.04,3628.9,3628.8,2.89333192]
[1753421784291,0.04,3628.9,3628.8,0.1376]
[1753421784491,0.04,3628.9,3628.8,2.89333192]
[1753421784692,0.04,3628.9,3628.8,0.1376]
[1753421784993,0.4964,3628.9,3628.8,2.89333192]
[1753421785323,0.04,3628.9,3628.8,0.1376]
[1753421785478,0.04,3628.9,3628.8,4.94834923]
[1753421785797,1e-08,3628.9,3628.8,5.49834923]
[1753421785957,1e-08,3628.9,3628.8,9.82679192]
[1753421786160,1e-08,3628.9,3628.8,8.50089192]
[1753421786581,0.45640001,3628.9,3628.8,7.69879192]
[1753421786894,0.90780001,3628.9,3628.8,0.1376]
[1753421787192,0.90780001,3628.9,3628.8,7.24933192]
[1753421787380,1e-08,3628.9,3628.8,7.24933192]
[1753421787588,1e-08,3628.9,3628.8,8.50583192]
[1753421787798,1e-08,3628.9,3628.8,9.6649611]
[1753421788103,1e-08,3628.9,3628.8,9.2186611]
[1753421788317,1e-08,3628.9,3628.8,8.4074611]
[1753421788522,0.45640001,3628.9,3628.8,8.4074611]
[1753421788866,1e-08,3628.9,3628.8,8.4074611]
[1753421790815,1e-08,3628.9,3628.8,9.0997611]
[1753421791112,1e-08,3628.9,3628.8,8.2698611]
[1753421794287,0.00200001,3628.9,3628.8,8.2688611]
[1753421794895,0.00200001,3628.9,3628.8,8.7151611]
[1753421797007,0.00200001,3628.9,3628.8,8.2688611]
[1753421797216,0.00200001,3628.9,3628.8,3.9148611]
[1753421797418,0.00200001,3628.9,3628.8,9.2641611]
[1753421797983,0.00200001,3628.9,3628.8,8.2678611]
[1753421800718,0.00200001,3628.9,3628.8,8.4054611]
[1753421802965,1e-08,3628.9,3628.8,10.5067611]
[1753421803807,1e-08,3628.9,3628.8,5.3778611]
[1753421804039,1e-08,3628.9,3628.8,4.8278611]
[1753421804259,1e-08,3628.9,3628.8,9.1788611]
[1753421804455,1e-08,3628.9,3628.8,8.4034611]
[1753421804616,1e-08,3628.9,3628.8,4.0524611]
[1753421804815,1e-08,3628.9,3628.8,8.4034611]
[1753421806751,0.45640001,3628.9,3628.8,8.4034611]
[1753421807292,0.45640001,3628.9,3628.8,8.4024611]
[1753421808466,1e-08,3628.9,3628.8,8.4024611]
[1753421808765,1e-08,3628.9,3628.8,10.4760611]
[1753421809114,1e-08,3628.9,3628.8,10.1464611]
[1753421809310,1e-08,3628.9,3628.8,9.7081611]
[1753421809949,1e-08,3628.9,3628.8,9.1581611]
[1753421810327,1e-08,3628.9,3628.8,8.4024611]
[1753421812224,1e-08,3628.9,3628.8,9.7203611]
[1753421812426,1e-08,3628.9,3628.8,10.5323611]
[1753421814972,1e-08,3628.9,3628.8,5.4144611]
[1753421815127,1e-08,3628.9,3628.8,9.7624611]
[1753421816259,1e-08,3628.9,3628.8,10.2017611]
[1753421817038,1e-08,3628.9,3628.8,9.2134611]
[1753421817246,1e-08,3628.9,3628.8,8.4014611]
[1753421818431,1e-08,3628.9,3628.8,8.8397611]
[1753421819372,1e-08,3628.9,3628.8,8.4014611]
[1753421820283,0.49440001,3628.9,3628.8,4.0534611]
[1753421820583,0.49440001,3628.9,3628.8,8.4004611]
[1753421821074,1e-08,3628.9,3628.8,8.4004611]
[1753421821440,1e-08,3628.9,3628.8,9.3887611]
[1753421821780,1e-08,3628.9,3628.8,9.7183611]
[1753421822553,1e-08,3628.9,3628.8,8.9504611]
[1753421825439,0.49440001,3628.9,3628.8,8.3994611]
[1753421826853,1e-08,3628.9,3628.8,8.3994611]
[1753421827550,1e-08,3628.9,3628.8,4.0534611]
[1753421827751,1e-08,3628.9,3628.8,8.3984611]
[1753421830482,1.2965,3629.8,3629.6,2.75512453]
[1753421830885,1.2965,3629.8,3629.6,2.89272453]
[1753421830886,0.9348,3629.7,3629.6,2.89272453]
[1753421831081,0.9348,3629.7,3629.6,0.1376]
[1753421831753,1.7206,3629.7,3629.6,0.1376]
[1753421833354,4.7206,3629.7,3629.6,0.1376]
[1753421833567,1.7206,3629.7,3629.6,0.1376]
[1753421835668,0.4964,3629.7,3629.6,0.1376]
[1753421835870,0.002,3629.7,3629.6,2.89272453]
[1753421836068,0.002,3629.7,3629.6,3.89447349]
[1753421836604,0.4964,3629.7,3629.6,3.89447349]
[1753421837099,0.002,3629.7,3629.6,3.89447349]
[1753421837812,0.4568,3629.7,3629.6,8.23647349]
[1753421837978,0.002,3629.7,3629.6,8.23647349]
[1753421840397,0.002,3629.7,3629.6,9.03957349]
[1753421840598,0.002,3629.7,3629.6,8.23647349]
[1753421840774,0.4568,3629.7,3629.6,8.23647349]
[1753421840970,0.002,3629.7,3629.6,8.23647349]
[1753421841202,0.002,3629.7,3629.6,8.68087349]
[1753421841507,0.002,3629.7,3629.6,8.23647349]
[1753421841908,0.4568,3629.7,3629.6,8.23647349]
[1753421842091,0.8891,3629.7,3629.6,3.89447349]
[1753421842314,0.8891,3629.7,3629.6,0.1376]
[1753421842622,0.8891,3629.7,3629.6,4.4776]
[1753421842988,1.7054,3629.7,3629.6,0.1376]
[1753421843186,7.46044862,3629.7,3629.6,0.1376]
[1753421843397,4.7054,3629.7,3629.6,0.1376]
[1753421843603,7.46044862,3629.7,3629.6,0.1376]
[1753421843798,7.97691001,3629.7,3629.6,0.1376]
[1753421844030,7.46044862,3629.7,3629.6,0.1376]
[1753421844389,2.75538241,3629.3,3628.8,0.001]
[1753421844586,0.7669,3629.2,3628.8,4.341]
[1753421844790,4.40945086,3629.2,3628.8,4.341]
[1753421845031,3.52235086,3629.2,3629.1,0.1376]
[1753421845337,0.7669,3629.2,3629.1,0.1376]
[1753421845552,3.52232819,3629.2,3629.1,0.1376]
[1753421845845,4.40942819,3629.2,3629.1,0.1376]